Workbook

Sheet 博士班
A1: 序号 | B1: 姓名 | C1: 班级 | D1: 德育 | J1: 智育 | P1: 文体 | V1: 综合测评总分 | W1: 排名
D2: 基本分 | E2: 奖励分 | F2: 惩罚分 | G2: 个人德育分 | H2: 个人德育总分/基准 | I2: 德育总成绩 | J2: 基本成绩 | K2: 奖励分 | L2: 惩罚分 | M2: 个人智育分 | N2: 个人智育总分/基准 | O2: 智育总成绩 | P2: 基本分 | Q2: 奖励分 | R2: 惩罚分 | S2: 个人体育分 | T2: 个人体育总分/基准 | U2: 文体总成绩
A3: 1 | B3: 李硕凡 | C3: 2022310234.00 | D3: 99.39 | E3: 0.00 | F3: 0.00 | G3: 99.39 | H3: =G3/$G$18 -> 0.77 | I3: 76.65 | J3: 147.16 | K3: 65.75 | L3: 0.00 | M3: 212.91 | N3: =M3/$M$3 -> 1 | O3: 100.00 | P3: 100.00 | Q3: 0.00 | R3: 0.00 | S3: 100.00 | T3: =S3/$S$21 -> 0.7352941176 | U3: 73.53 | V3: =I3*0.2+O3*0.7+U3*0.1 -> 92.68 | W3: 1
A4: 2 | B4: 陈冬冬 | C4: 2022310251.00 | D4: 99.54 | E4: 9.00 | F4: 0.00 | G4: 108.54 | H4: 0.84 | I4: 83.71 | J4: 119.80 | K4: 61.63 | L4: 0.00 | M4: 181.43 | N4: =M4/$M$3 -> 0.852168584 | O4: 85.22 | P4: 100.00 | Q4: 0.00 | R4: 0.00 | S4: 100.00 | T4: 0.7352941176 | U4: 73.53 | V4: 83.75 | W4: 2
A5: 3 | B5: 聂林春 | C5: 2022310255.00 | D5: 100.73 | E5: 4.00 | F5: 0.00 | G5: 104.73 | H5: 0.81 | I5: 80.77 | J5: 94.62 | K5: 88.04 | L5: 0.00 | M5: 182.66 | N5: =M5/$M$3 -> 0.8579349982 | O5: 85.79 | P5: 100.00 | Q5: 0.00 | R5: 0.00 | S5: 100.00 | T5: 0.7352941176 | U5: 73.53 | V5: 83.56 | W5: 3
A6: 4 | B6: 邹予桐 | C6: 2022310209.00 | D6: 103.34 | E6: 9.00 | F6: 0.00 | G6: 112.34 | H6: 0.87 | I6: 86.63 | J6: 127.65 | K6: 43.78 | L6: 0.00 | M6: 171.42 | N6: =M6/$M$3 -> 0.8051478359 | O6: 80.51 | P6: 100.00 | Q6: 0.00 | R6: 0.00 | S6: 100.00 | T6: 0.7352941176 | U6: 73.53 | V6: 81.04 | W6: 4
A7: 5 | B7: 孙冬 | C7: 2022310247.00 | D7: 99.35 | E7: 8.00 | F7: 0.00 | G7: 107.35 | H7: 0.83 | I7: 82.79 | J7: 105.30 | K7: 62.40 | L7: 0.00 | M7: 167.70 | N7: =M7/$M$3 -> 0.7876878025 | O7: 78.77 | P7: 100.00 | Q7: 0.00 | R7: 0.00 | S7: 100.00 | T7: 0.7352941176 | U7: 73.53 | V7: 79.05 | W7: 5
A8: 6 | B8: 王智远 | C8: 2022310216.00 | D8: 100.37 | E8: 6.00 | F8: 0.00 | G8: 106.37 | H8: 0.82 | I8: 82.03 | J8: 110.35 | K8: 55.27 | L8: 0.00 | M8: 165.62 | N8: =M8/$M$3 -> 0.7779017246 | O8: 77.79 | P8: 100.00 | Q8: 0.00 | R8: 0.00 | S8: 100.00 | T8: 0.7352941176 | U8: 73.53 | V8: 78.21 | W8: 6
A9: 7 | B9: 蔡进 | C9: 2022310204.00 | D9: 96.38 | E9: 5.00 | F9: 0.00 | G9: 101.38 | H9: 0.78 | I9: 78.18 | J9: 130.52 | K9: 22.65 | L9: 0.00 | M9: 153.18 | N9: =M9/$M$3 -> 0.7194570006 | O9: 71.95 | P9: 100.00 | Q9: 0.00 | R9: 0.00 | S9: 100.00 | T9: 0.7352941176 | U9: 73.53 | V9: 73.35 | W9: 7
A10: 8 | B10: 于春晖 | C10: 2022310249.00 | D10: 103.38 | E10: 18.00 | F10: 0.00 | G10: 121.38 | H10: 0.94 | I10: 93.61 | J10: 96.27 | K10: 33.65 | L10: 0.00 | M10: 129.92 | N10: =M10/$M$3 -> 0.6102017332 | O10: 61.02 | P10: 100.00 | Q10: 0.00 | R10: 0.00 | S10: 100.00 | T10: 0.7352941176 | U10: 73.53 | V10: 68.79 | W10: 8
A11: 9 | B11: 王鑫 | C11: 2022310240.00 | D11: 107.40 | E11: 5.00 | F11: 0.00 | G11: 112.40 | H11: 0.87 | I11: 86.68 | J11: 89.60 | K11: 33.00 | L11: 0.00 | M11: 122.60 | N11: =M11/$M$3 -> 0.5758436862 | O11: 57.58 | P11: 107.00 | Q11: 7.00 | R11: 0.00 | S11: 114.00 | T11: 0.8382352941 | U11: 83.82 | V11: 66.03 | W11: 9
A12: 10 | B12: 李东泽 | C12: 2022310208.00 | D12: 102.29 | E12: 3.00 | F12: 0.00 | G12: 105.29 | H12: 0.81 | I12: 81.20 | J12: 97.41 | K12: 29.17 | L12: 0.00 | M12: 126.58 | N12: =M12/$M$3 -> 0.5945326237 | O12: 59.45 | P12: 100.00 | Q12: 0.00 | R12: 0.00 | S12: 100.00 | T12: 0.7352941176 | U12: 73.53 | V12: 65.21 | W12: 10
A13: 11 | B13: 郑蓉蓉 | C13: 2022310210.00 | D13: 107.14 | E13: 11.60 | F13: 0.00 | G13: 118.74 | H13: 0.92 | I13: 91.57 | J13: 84.00 | K13: 26.25 | L13: 0.00 | M13: 110.25 | N13: =M13/$M$3 -> 0.5178365938 | O13: 51.78 | P13: 100.00 | Q13: 0.00 | R13: 0.00 | S13: 100.00 | T13: 0.7352941176 | U13: 73.53 | V13: 61.92 | W13: 11
A14: 12 | B14: 谢浩东 | C14: 2022310244.00 | D14: 106.57 | E14: 6.00 | F14: 0.00 | G14: 112.57 | H14: 0.87 | I14: 86.82 | J14: 93.48 | K14: 17.08 | L14: 0.00 | M14: 110.56 | N14: =M14/$M$3 -> 0.5193082987 | O14: 51.93 | P14: 100.00 | Q14: 0.00 | R14: 0.00 | S14: 100.00 | T14: 0.7352941176 | U14: 73.53 | V14: 61.07 | W14: 12
A15: 13 | B15: 李建 | C15: 2022310222.00 | D15: 96.46 | E15: 0.00 | F15: 0.00 | G15: 96.46 | H15: 0.74 | I15: 74.39 | J15: 108.70 | K15: 8.75 | L15: 0.00 | M15: 117.45 | N15: =M15/$M$3 -> 0.5516544938 | O15: 55.17 | P15: 100.00 | Q15: 0.00 | R15: 0.00 | S15: 100.00 | T15: 0.7352941176 | U15: 73.53 | V15: 60.85 | W15: 13
A16: 14 | B16: 司道润 | C16: 2022310226.00 | D16: 96.41 | E16: 0.00 | F16: 0.00 | G16: 96.41 | H16: 0.74 | I16: 74.35 | J16: 88.40 | K16: 28.75 | L16: 0.00 | M16: 117.15 | N16: =M16/$M$3 -> 0.5502454146 | O16: 55.02 | P16: 100.00 | Q16: 0.00 | R16: 0.00 | S16: 100.00 | T16: 0.7352941176 | U16: 73.53 | V16: 60.74 | W16: 14
A17: 15 | B17: 许关欣 | C17: 2022310241.00 | D17: 101.51 | E17: 0.00 | F17: 0.00 | G17: 101.51 | H17: 0.78 | I17: 78.28 | J17: 85.91 | K17: 28.63 | L17: 0.00 | M17: 114.53 | N17: =M17/$M$3 -> 0.5379535474 | O17: 53.80 | P17: 100.00 | Q17: 0.00 | R17: 0.00 | S17: 100.00 | T17: 0.7352941176 | U17: 73.53 | V17: 60.67 | W17: 15
A18: 16 | B18: 包若凝 | C18: 2022310214.00 | D18: 111.67 | E18: 18.00 | F18: 0.00 | G18: 129.67 | H18: 1.00 | I18: 100.00 | J18: 87.15 | K18: 8.46 | L18: 0.00 | M18: 95.61 | N18: =M18/$M$3 -> 0.4490563084 | O18: 44.91 | P18: 107.33 | Q18: 4.67 | R18: 0.00 | S18: 112.00 | T18: 0.8235294118 | U18: 82.35 | V18: 59.67 | W18: 16
A19: 17 | B19: 吕明珠 | C19: 2022310213.00 | D19: 101.23 | E19: 4.60 | F19: 0.00 | G19: 105.83 | H19: 0.82 | I19: 81.61 | J19: 101.90 | K19: 6.00 | L19: 0.00 | M19: 107.90 | N19: =M19/$M$3 -> 0.506798807 | O19: 50.68 | P19: 100.00 | Q19: 0.00 | R19: 0.00 | S19: 100.00 | T19: 0.7352941176 | U19: 73.53 | V19: 59.15 | W19: 17
A20: 18 | B20: 张浩楠 | C20: 2022310250.00 | D20: 100.50 | E20: 3.00 | F20: 0.00 | G20: 103.50 | H20: 0.80 | I20: 79.82 | J20: 93.95 | K20: 13.45 | L20: 0.00 | M20: 107.40 | N20: =M20/$M$3 -> 0.5044503417 | O20: 50.45 | P20: 100.00 | Q20: 0.00 | R20: 0.00 | S20: 100.00 | T20: 0.7352941176 | U20: 73.53 | V20: 58.63 | W20: 18
A21: 19 | B21: 孔倩 | C21: 2022315210.00 | D21: 96.37 | E21: 4.00 | F21: 0.00 | G21: 100.37 | H21: 0.77 | I21: 77.40 | J21: 85.60 | K21: 15.00 | L21: 0.00 | M21: 100.60 | N21: =M21/$M$3 -> 0.4725112139 | O21: 47.25 | P21: 120.00 | Q21: 16.00 | R21: 0.00 | S21: 136.00 | T21: 1 | U21: 100.00 | V21: 58.56 | W21: 19
A22: 20 | B22: 杨昌泽 | C22: 2022315212.00 | D22: 101.35 | E22: 4.60 | F22: 0.00 | G22: 105.95 | H22: 0.82 | I22: 81.71 | J22: 96.33 | K22: 9.63 | L22: 0.00 | M22: 105.96 | N22: =M22/$M$3 -> 0.497663277 | O22: 49.77 | P22: 100.00 | Q22: 0.00 | R22: 0.00 | S22: 100.00 | T22: 0.7352941176 | U22: 73.53 | V22: 58.53 | W22: 20
A23: 21 | B23: 李之辉 | C23: 2022310237.00 | D23: 96.28 | E23: 0.00 | F23: 0.00 | G23: 96.28 | H23: 0.74 | I23: 74.25 | J23: 109.20 | K23: 0.35 | L23: 0.00 | M23: 109.55 | N23: =M23/$M$3 -> 0.5145487424 | O23: 51.45 | P23: 100.00 | Q23: 0.00 | R23: 0.00 | S23: 100.00 | T23: 0.7352941176 | U23: 73.53 | V23: 58.22 | W23: 21
A24: 22 | B24: 高宁晗 | C24: 2022310206.00 | D24: 101.41 | E24: 0.00 | F24: 0.00 | G24: 101.41 | H24: 0.78 | I24: 78.21 | J24: 90.20 | K24: 16.13 | L24: 0.00 | M24: 106.33 | N24: =M24/$M$3 -> 0.4994011414 | O24: 49.94 | P24: 100.00 | Q24: 0.00 | R24: 0.00 | S24: 100.00 | T24: 0.7352941176 | U24: 73.53 | V24: 57.95 | W24: 22
A25: 23 | B25: 柳楠 | C25: 2022310220.00 | D25: 99.34 | E25: 3.00 | F25: 0.00 | G25: 102.34 | H25: 0.79 | I25: 78.92 | J25: 88.65 | K25: 16.55 | L25: 0.00 | M25: 105.20 | N25: =M25/$M$3 -> 0.4941170945 | O25: 49.41 | P25: 100.00 | Q25: 0.00 | R25: 0.00 | S25: 100.00 | T25: 0.7352941176 | U25: 73.53 | V25: 57.73 | W25: 23
A26: 24 | B26: 殷梦凡 | C26: 2022310223.00 | D26: 99.56 | E26: 4.00 | F26: 0.00 | G26: 103.56 | H26: 0.80 | I26: 79.87 | J26: 96.17 | K26: 5.32 | L26: 0.00 | M26: 101.49 | N26: =M26/$M$3 -> 0.4766981893 | O26: 47.67 | P26: 100.00 | Q26: 0.00 | R26: 0.00 | S26: 100.00 | T26: 0.7352941176 | U26: 73.53 | V26: 56.70 | W26: 24
A27: 25 | B27: 王明龙 | C27: 2022310221.00 | D27: 96.35 | E27: 0.00 | F27: 0.00 | G27: 96.35 | H27: 0.74 | I27: 74.30 | J27: 104.51 | K27: 0.00 | L27: 0.00 | M27: 104.51 | N27: =M27/$M$3 -> 0.4908527277 | O27: 49.09 | P27: 100.00 | Q27: 0.00 | R27: 0.00 | S27: 100.00 | T27: 0.7352941176 | U27: 73.53 | V27: 56.57 | W27: 25
A28: 26 | B28: 孔肖阳 | C28: 2022310207.00 | D28: 102.46 | E28: 3.00 | F28: 0.00 | G28: 105.46 | H28: 0.81 | I28: 81.33 | J28: 89.09 | K28: 9.91 | L28: 0.00 | M28: 98.99 | N28: =M28/$M$3 -> 0.4649630726 | O28: 46.50 | P28: 100.00 | Q28: 0.00 | R28: 0.00 | S28: 100.00 | T28: 0.7352941176 | U28: 73.53 | V28: 56.17 | W28: 26
A29: 27 | B29: 杨若宸 | C29: 2022310253.00 | D29: 103.96 | E29: 12.00 | F29: 0.00 | G29: 115.96 | H29: 0.89 | I29: 89.43 | J29: 90.30 | K29: 2.50 | L29: 0.00 | M29: 92.80 | N29: =M29/$M$3 -> 0.4358774737 | O29: 43.59 | P29: 100.00 | Q29: 0.00 | R29: 0.00 | S29: 100.00 | T29: 0.7352941176 | U29: 73.53 | V29: 55.75 | W29: 27
A30: 28 | B30: 徐伟杰 | C30: 2022310228.00 | D30: 107.23 | E30: 11.60 | F30: 0.00 | G30: 118.83 | H30: 0.92 | I30: 91.64 | J30: 86.30 | K30: 0.00 | L30: 0.00 | M30: 86.30 | N30: =M30/$M$3 -> 0.405345107 | O30: 40.53 | P30: 100.00 | Q30: 15.30 | R30: 0.00 | S30: 115.30 | T30: 0.8477941176 | U30: 84.78 | V30: 55.18 | W30: 28
A31: 29 | B31: 蒋郑峰 | C31: 2022315211.00 | D31: 97.29 | E31: 5.00 | F31: 0.00 | G31: 102.29 | H31: 0.79 | I31: 78.89 | J31: 86.16 | K31: 11.13 | L31: 0.00 | M31: 97.29 | N31: =M31/$M$3 -> 0.4569408891 | O31: 45.69 | P31: 100.00 | Q31: 0.00 | R31: 0.00 | S31: 100.00 | T31: 0.7352941176 | U31: 73.53 | V31: 55.12 | W31: 29
A32: 30 | B32: 陈霖 | C32: 2022310201.00 | D32: 99.42 | E32: 0.00 | F32: 0.00 | G32: 99.42 | H32: 0.77 | I32: 76.67 | J32: 98.28 | K32: 0.00 | L32: 0.00 | M32: 98.28 | N32: =M32/$M$3 -> 0.461614335 | O32: 46.16 | P32: 100.00 | Q32: 0.00 | R32: 0.00 | S32: 100.00 | T32: 0.7352941176 | U32: 73.53 | V32: 55.00 | W32: 30
A33: 31 | B33: 于洋 | C33: 2022310211.00 | D33: 104.60 | E33: 4.00 | F33: 0.00 | G33: 108.60 | H33: 0.84 | I33: 83.76 | J33: 93.17 | K33: 0.00 | L33: 0.00 | M33: 93.17 | N33: =M33/$M$3 -> 0.4375973635 | O33: 43.76 | P33: 100.00 | Q33: 0.00 | R33: 0.00 | S33: 100.00 | T33: 0.7352941176 | U33: 73.53 | V33: 54.74 | W33: 31
A34: 32 | B34: 高照 | C34: 2022315201.00 | D34: 96.57 | E34: 5.00 | F34: 0.00 | G34: 101.57 | H34: 0.78 | I34: 78.33 | J34: 93.62 | K34: 2.50 | L34: 0.00 | M34: 96.12 | N34: =M34/$M$3 -> 0.451468965 | O34: 45.15 | P34: 100.00 | Q34: 0.00 | R34: 0.00 | S34: 100.00 | T34: 0.7352941176 | U34: 73.53 | V34: 54.62 | W34: 32
A35: 33 | B35: 许振彬 | C35: 2022315209.00 | D35: 97.01 | E35: 0.00 | F35: 0.00 | G35: 97.01 | H35: 0.75 | I35: 74.81 | J35: 97.83 | K35: 0.00 | L35: 0.00 | M35: 97.83 | N35: =M35/$M$3 -> 0.4595162162 | O35: 45.95 | P35: 100.00 | Q35: 0.00 | R35: 0.00 | S35: 100.00 | T35: 0.7352941176 | U35: 73.53 | V35: 54.48 | W35: 33
A36: 34 | B36: 刘玉佩 | C36: 2022310238.00 | D36: 96.56 | E36: 0.00 | F36: 0.00 | G36: 96.56 | H36: 0.74 | I36: 74.47 | J36: 90.80 | K36: 6.66 | L36: 0.00 | M36: 97.46 | N36: =M36/$M$3 -> 0.457762852 | O36: 45.78 | P36: 100.00 | Q36: 0.00 | R36: 0.00 | S36: 100.00 | T36: 0.7352941176 | U36: 73.53 | V36: 54.29 | W36: 34
A37: 35 | B37: 姜梁妍 | C37: 2022310239.00 | D37: 100.40 | E37: 0.00 | F37: 0.00 | G37: 100.40 | H37: 0.77 | I37: 77.43 | J37: 88.80 | K37: 5.50 | L37: 0.00 | M37: 94.30 | N37: =M37/$M$3 -> 0.4429205514 | O37: 44.29 | P37: 100.00 | Q37: 0.00 | R37: 0.00 | S37: 100.00 | T37: 0.7352941176 | U37: 73.53 | V37: 53.84 | W37: 35
A38: 36 | B38: 夏添 | C38: 2022310233.00 | D38: 98.53 | E38: 0.00 | F38: 0.00 | G38: 98.53 | H38: 0.76 | I38: 75.98 | J38: 90.47 | K38: 3.79 | L38: 0.00 | M38: 94.26 | N38: =M38/$M$3 -> 0.4427248461 | O38: 44.27 | P38: 100.00 | Q38: 0.00 | R38: 0.00 | S38: 100.00 | T38: 0.7352941176 | U38: 73.53 | V38: 53.54 | W38: 36
A39: 37 | B39: 吴昊峰 | C39: 2022310227.00 | D39: 96.40 | E39: 0.00 | F39: 0.00 | G39: 96.40 | H39: 0.74 | I39: 74.34 | J39: 88.24 | K39: 5.78 | L39: 0.00 | M39: 94.02 | N39: =M39/$M$3 -> 0.4415949732 | O39: 44.16 | P39: 100.00 | Q39: 0.00 | R39: 0.00 | S39: 100.00 | T39: 0.7352941176 | U39: 73.53 | V39: 53.13 | W39: 37
A40: 38 | B40: 刘莎莎 | C40: 2022310202.00 | D40: 96.39 | E40: 0.00 | F40: 0.00 | G40: 96.39 | H40: 0.74 | I40: 74.34 | J40: 93.80 | K40: 0.00 | L40: 0.00 | M40: 93.80 | N40: =M40/$M$3 -> 0.4405720861 | O40: 44.06 | P40: 100.00 | Q40: 0.00 | R40: 0.00 | S40: 100.00 | T40: 0.7352941176 | U40: 73.53 | V40: 53.06 | W40: 38
A41: 39 | B41: 陈靖 | C41: 2022310231.00 | D41: 96.37 | E41: 0.00 | F41: 0.00 | G41: 96.37 | H41: 0.74 | I41: 74.32 | J41: 92.83 | K41: 0.38 | L41: 0.00 | M41: 93.21 | N41: =M41/$M$3 -> 0.4377930689 | O41: 43.78 | P41: 100.00 | Q41: 0.00 | R41: 0.00 | S41: 100.00 | T41: 0.7352941176 | U41: 73.53 | V41: 52.86 | W41: 39
A42: 40 | B42: 曹越 | C42: 2022310245.00 | D42: 100.30 | E42: 2.00 | F42: 0.00 | G42: 102.30 | H42: 0.79 | I42: 78.90 | J42: 87.80 | K42: 1.63 | L42: 0.00 | M42: 89.43 | N42: =M42/$M$3 -> 0.420023015 | O42: 42.00 | P42: 100.00 | Q42: 0.00 | R42: 0.00 | S42: 100.00 | T42: 0.7352941176 | U42: 73.53 | V42: 52.53 | W42: 40
A43: 41 | B43: 冯龙 | C43: 2022315205.00 | D43: 96.38 | E43: 0.00 | F43: 0.00 | G43: 96.38 | H43: 0.74 | I43: 74.33 | J43: 82.10 | K43: 9.77 | L43: 0.00 | M43: 91.87 | N43: =M43/$M$3 -> 0.43151982 | O43: 43.15 | P43: 100.00 | Q43: 0.00 | R43: 0.00 | S43: 100.00 | T43: 0.7352941176 | U43: 73.53 | V43: 52.42 | W43: 41
A44: 42 | B44: 刘申宁 | C44: 2022310242.00 | D44: 99.51 | E44: 0.00 | F44: 0.00 | G44: 99.51 | H44: 0.77 | I44: 76.74 | J44: 90.24 | K44: 0.00 | L44: 0.00 | M44: 90.24 | N44: =M44/$M$3 -> 0.423847672 | O44: 42.38 | P44: 100.00 | Q44: 0.00 | R44: 0.00 | S44: 100.00 | T44: 0.7352941176 | U44: 73.53 | V44: 52.37 | W44: 42
A45: 43 | B45: 张瑞 | C45: 2022310203.00 | D45: 99.34 | E45: 0.00 | F45: 0.00 | G45: 99.34 | H45: 0.77 | I45: 76.61 | J45: 85.38 | K45: 3.75 | L45: 0.00 | M45: 89.13 | N45: =M45/$M$3 -> 0.4186139358 | O45: 41.86 | P45: 103.33 | Q45: 0.00 | R45: 0.00 | S45: 103.33 | T45: 0.7597794118 | U45: 75.98 | V45: 52.22 | W45: 43
A46: 44 | B46: 张世源 | C46: 2022310219.00 | D46: 96.42 | E46: 3.00 | F46: 0.00 | G46: 99.42 | H46: 0.77 | I46: 76.67 | J46: 83.32 | K46: 6.25 | L46: 0.00 | M46: 89.57 | N46: =M46/$M$3 -> 0.4207040699 | O46: 42.07 | P46: 100.00 | Q46: 0.00 | R46: 0.00 | S46: 100.00 | T46: 0.7352941176 | U46: 73.53 | V46: 52.14 | W46: 44
A47: 45 | B47: 安思莹 | C47: 2022315203.00 | D47: 100.44 | E47: 0.00 | F47: 0.00 | G47: 100.44 | H47: 0.77 | I47: 77.46 | J47: 88.38 | K47: 0.00 | L47: 0.00 | M47: 88.38 | N47: =M47/$M$3 -> 0.4151147225 | O47: 41.51 | P47: 100.00 | Q47: 0.00 | R47: 0.00 | S47: 100.00 | T47: 0.7352941176 | U47: 73.53 | V47: 51.90 | W47: 45
A48: 46 | B48: 李晓涵 | C48: 2022310232.00 | D48: 96.41 | E48: 0.00 | F48: 0.00 | G48: 96.41 | H48: 0.74 | I48: 74.35 | J48: 86.51 | K48: 3.31 | L48: 0.00 | M48: 89.83 | N48: =M48/$M$3 -> 0.4219076894 | O48: 42.19 | P48: 100.00 | Q48: 0.00 | R48: 0.00 | S48: 100.00 | T48: 0.7352941176 | U48: 73.53 | V48: 51.76 | W48: 46
A49: 47 | B49: 熊东 | C49: 2022310218.00 | D49: 96.37 | E49: 0.00 | F49: 0.00 | G49: 96.37 | H49: 0.74 | I49: 74.32 | J49: 89.77 | K49: 0.00 | L49: 0.00 | M49: 89.77 | N49: =M49/$M$3 -> 0.4216277996 | O49: 42.16 | P49: 100.00 | Q49: 0.00 | R49: 0.00 | S49: 100.00 | T49: 0.7352941176 | U49: 73.53 | V49: 51.73 | W49: 47
A50: 48 | B50: 陈欢 | C50: 2022310205.00 | D50: 96.41 | E50: 0.00 | F50: 0.00 | G50: 96.41 | H50: 0.74 | I50: 74.35 | J50: 89.20 | K50: 0.00 | L50: 0.00 | M50: 89.20 | N50: =M50/$M$3 -> 0.4189662056 | O50: 41.90 | P50: 100.00 | Q50: 0.00 | R50: 0.00 | S50: 100.00 | T50: 0.7352941176 | U50: 73.53 | V50: 51.55 | W50: 48
A51: 49 | B51: 刘璐 | C51: 2022310230.00 | D51: 96.53 | E51: 0.00 | F51: 0.00 | G51: 96.53 | H51: 0.74 | I51: 74.44 | J51: 87.46 | K51: 1.00 | L51: 0.00 | M51: 88.46 | N51: =M51/$M$3 -> 0.4154825126 | O51: 41.55 | P51: 100.00 | Q51: 0.00 | R51: 0.00 | S51: 100.00 | T51: 0.7352941176 | U51: 73.53 | V51: 51.33 | W51: 49
A52: 50 | B52: 黄萌 | C52: 2022310243.00 | D52: 97.05 | E52: 0.00 | F52: 0.00 | G52: 97.05 | H52: 0.75 | I52: 74.85 | J52: 88.00 | K52: 0.00 | L52: 0.00 | M52: 88.00 | N52: =M52/$M$3 -> 0.4133298889 | O52: 41.33 | P52: 100.00 | Q52: 0.00 | R52: 0.00 | S52: 100.00 | T52: 0.7352941176 | U52: 73.53 | V52: 51.26 | W52: 50
A53: 51 | B53: 余望 | C53: 2022310254.00 | D53: 94.82 | E53: 0.00 | F53: 0.00 | G53: 94.82 | H53: 0.73 | I53: 73.13 | J53: 86.80 | K53: 2.14 | L53: 0.00 | M53: 88.94 | N53: =M53/$M$3 -> 0.4177450036 | O53: 41.77 | P53: 100.00 | Q53: 0.00 | R53: 0.00 | S53: 100.00 | T53: 0.7352941176 | U53: 73.53 | V53: 51.22 | W53: 51
A54: 52 | B54: 修浩 | C54: 2022310248.00 | D54: 96.43 | E54: 0.00 | F54: 0.00 | G54: 96.43 | H54: 0.74 | I54: 74.37 | J54: 87.80 | K54: 0.00 | L54: 0.00 | M54: 87.80 | N54: =M54/$M$3 -> 0.4123905028 | O54: 41.24 | P54: 100.00 | Q54: 0.00 | R54: 0.00 | S54: 100.00 | T54: 0.7352941176 | U54: 73.53 | V54: 51.09 | W54: 52
A55: 53 | B55: 卜禹豪 | C55: 2022310236.00 | D55: 96.97 | E55: 0.00 | F55: 0.00 | G55: 96.97 | H55: 0.75 | I55: 74.78 | J55: 87.50 | K55: 0.00 | L55: 0.00 | M55: 87.50 | N55: =M55/$M$3 -> 0.4109814236 | O55: 41.10 | P55: 100.00 | Q55: 0.00 | R55: 0.00 | S55: 100.00 | T55: 0.7352941176 | U55: 73.53 | V55: 51.08 | W55: 53
A56: 54 | B56: 黄可儿 | C56: 2022310212.00 | D56: 99.56 | E56: 5.00 | F56: 0.00 | G56: 104.56 | H56: 0.81 | I56: 80.64 | J56: 83.28 | K56: 0.63 | L56: 0.00 | M56: 83.91 | N56: =M56/$M$3 -> 0.3941176364 | O56: 39.41 | P56: 100.00 | Q56: 0.00 | R56: 0.00 | S56: 100.00 | T56: 0.7352941176 | U56: 73.53 | V56: 51.07 | W56: 54
A57: 55 | B57: 李蕊 | C57: 2022315208.00 | D57: 96.35 | E57: 0.00 | F57: 0.00 | G57: 96.35 | H57: 0.74 | I57: 74.30 | J57: 83.84 | K57: 3.17 | L57: 0.00 | M57: 87.01 | N57: =M57/$M$3 -> 0.4086642712 | O57: 40.87 | P57: 100.00 | Q57: 0.00 | R57: 0.00 | S57: 100.00 | T57: 0.7352941176 | U57: 73.53 | V57: 50.82 | W57: 55
A58: 56 | B58: 赵飞龙 | C58: 2022310224.00 | D58: 97.66 | E58: 0.00 | F58: 0.00 | G58: 97.66 | H58: 0.75 | I58: 75.32 | J58: 86.35 | K58: 0.00 | L58: 0.00 | M58: 86.35 | N58: =M58/$M$3 -> 0.4055799535 | O58: 40.56 | P58: 100.00 | Q58: 0.00 | R58: 0.00 | S58: 100.00 | T58: 0.7352941176 | U58: 73.53 | V58: 50.81 | W58: 56
A59: 57 | B59: 邹义儒 | C59: 2022315207.00 | D59: 99.45 | E59: 3.00 | F59: 0.00 | G59: 102.45 | H59: 0.79 | I59: 79.01 | J59: 79.55 | K59: 3.00 | L59: 0.00 | M59: 82.55 | N59: =M59/$M$3 -> 0.3877316174 | O59: 38.77 | P59: 100.00 | Q59: 0.00 | R59: 0.00 | S59: 100.00 | T59: 0.7352941176 | U59: 73.53 | V59: 50.30 | W59: 57
A60: 58 | B60: 李瑞 | C60: 2022310217.00 | D60: 103.50 | E60: 0.00 | F60: 0.00 | G60: 103.50 | H60: 0.80 | I60: 79.82 | J60: 81.45 | K60: 0.00 | L60: 0.00 | M60: 81.45 | N60: =M60/$M$3 -> 0.3825420197 | O60: 38.25 | P60: 100.00 | Q60: 0.00 | R60: 0.00 | S60: 100.00 | T60: 0.7352941176 | U60: 73.53 | V60: 50.09 | W60: 58
A61: 59 | B61: 南睿 | C61: 2022310225.00 | D61: 96.39 | E61: 0.00 | F61: 0.00 | G61: 96.39 | H61: 0.74 | I61: 74.34 | J61: 84.50 | K61: 0.00 | L61: 0.00 | M61: 84.50 | N61: =M61/$M$3 -> 0.396890632 | O61: 39.69 | P61: 100.00 | Q61: 0.00 | R61: 0.00 | S61: 100.00 | T61: 0.7352941176 | U61: 73.53 | V61: 50.00 | W61: 59
A62: 60 | B62: 陈子康 | C62: 2022315202.00 | D62: 96.35 | E62: 0.00 | F62: 0.00 | G62: 96.35 | H62: 0.74 | I62: 74.30 | J62: 84.07 | K62: 0.00 | L62: 0.00 | M62: 84.07 | N62: =M62/$M$3 -> 0.3948910815 | O62: 39.49 | P62: 100.00 | Q62: 0.00 | R62: 0.00 | S62: 100.00 | T62: 0.7352941176 | U62: 73.53 | V62: 49.86 | W62: 60
A63: 61 | B63: 李鹏飞 | C63: 2022310246.00 | D63: 96.35 | E63: 0.00 | F63: 0.00 | G63: 96.35 | H63: 0.74 | I63: 74.30 | J63: 84.07 | K63: 0.00 | L63: 0.00 | M63: 84.07 | N63: =M63/$M$3 -> 0.3948709518 | O63: 39.49 | P63: 100.00 | Q63: 0.00 | R63: 0.00 | S63: 100.00 | T63: 0.7352941176 | U63: 73.53 | V63: 49.85 | W63: 61
A64: 62 | B64: 薛其州 | C64: 2022310229.00 | D64: 96.46 | E64: 0.00 | F64: 0.00 | G64: 96.46 | H64: 0.74 | I64: 74.39 | J64: 83.18 | K64: 0.00 | L64: 0.00 | M64: 83.18 | N64: =M64/$M$3 -> 0.3906906836 | O64: 39.07 | P64: 100.00 | Q64: 0.00 | R64: 0.00 | S64: 100.00 | T64: 0.7352941176 | U64: 73.53 | V64: 49.58 | W64: 62
A65: 63 | B65: 褚俊杰 | C65: 2022315206.00 | D65: 96.40 | E65: 0.00 | F65: 0.00 | G65: 96.40 | H65: 0.74 | I65: 74.34 | J65: 83.15 | K65: 0.00 | L65: 0.00 | M65: 83.15 | N65: =M65/$M$3 -> 0.3905497757 | O65: 39.05 | P65: 100.00 | Q65: 0.00 | R65: 0.00 | S65: 100.00 | T65: 0.7352941176 | U65: 73.53 | V65: 49.56 | W65: 63
A66: 64 | B66: 谢泽睿 | C66: 2022310235.00 | D66: 96.42 | E66: 0.00 | F66: 0.00 | G66: 96.42 | H66: 0.74 | I66: 74.36 | J66: 82.80 | K66: 0.00 | L66: 0.00 | M66: 82.80 | N66: =M66/$M$3 -> 0.3889254206 | O66: 38.89 | P66: 100.00 | Q66: 0.00 | R66: 0.00 | S66: 100.00 | T66: 0.7352941176 | U66: 73.53 | V66: 49.45 | W66: 64
A67: 65 | B67: 冯仕杰 | C67: 2022310215.00 | D67: 96.43 | E67: 0.00 | F67: 0.00 | G67: 96.43 | H67: =G67/$G$18 -> 0.74 | I67: 74.37 | J67: 67.45 | K67: 0.00 | L67: 0.00 | M67: 67.45 | N67: =M67/$M$3 -> 0.316807966 | O67: 31.68 | P67: 100.00 | Q67: 0.00 | R67: 0.00 | S67: 100.00 | T67: =S67/$S$21 -> 0.7352941176 | U67: 73.53 | V67: =I67*0.2+O67*0.7+U67*0.1 -> 44.40 | W67: 65
A68: 66 | B68: 蒋乾民 | C68: 2022315204.00 | D68: 96.31 | E68: 0.00 | F68: 0.00 | G68: 96.31 | H68: =G68/$G$18 -> 0.74 | I68: 74.28 | J68: 56.70 | K68: 0.00 | L68: 0.00 | M68: 56.70 | N68: =M68/$M$3 -> 0.2663159625 | O68: 26.63 | P68: 100.00 | Q68: 0.00 | R68: 0.00 | S68: 100.00 | T68: =S68/$S$21 -> 0.7352941176 | U68: 73.53 | V68: =I68*0.2+O68*0.7+U68*0.1 -> 40.85 | W68: 66
